[Event "1st Sakatam Open 2024"]
[Site "Guwahati"]
[Date "2024.03.26"]
[Round "7.6"]
[White "Singh, Y. Dhanabir"]
[Black "Arshiya Das"]
[Result "1-0"]
[ECO "B06"]
[WhiteElo "1996"]
[BlackElo "1741"]
[Annotator "RC"]
[PlyCount "145"]
[EventDate "2024.03.24"]
[EventType "swiss"]
[EventCountry "IND"]
[SourceTitle "playchess.com"]
[Source "ChessBase"]
[SourceQuality "1"]
[TimeControl "5400+30"]

1. e4 {[%emt 0:00:07]} g6 {[%emt 0:00:07]} 2. d4 {[%emt 0:00:44]} Bg7 {[%emt 0:00:10]} 3. f4 {[%emt 0:01:35]} d6 {[%emt 0:00:11]} 4. Nf3 {[%emt 0:00:15]} a6 {[%emt 0:00:12]} 5. Bd3 {[%emt 0:01:29]} Bg4 {[%emt 0:03:06]} 6. c3 {[%emt 0:02:21]} Nd7 {[%emt 0:01:29]} 7. O-O {[%emt 0:02:49]} e6 {[%emt 0:03:26]} 8. f5 {[%emt 0:20:06]} e5 {[%emt 0:12:28]} 9. Qb3 {[%emt 0:07:02]} Bxf3 {[%emt 0:06:56]} 10. Rxf3 {[%emt 0:04:46]} g5 {[%emt 0:08:52]} 11. f6 {[%emt 0:05:09]} Bxf6 {[%emt 0:09:30]} 12. Bxg5 {[%emt 0:00:20]} b5 {[%emt 0:03:12]} 13. Bxf6 {[%emt 0:04:47]} Ngxf6 {[%emt 0:01:50]} 14. a4 {[%emt 0:01:07]} c6 {[%emt 0:04:23]} 15. Na3 {[%emt 0:06:20]} Rb8 {[%emt 0:04:32]} 16. Raf1 {[%emt 0:03:10]} Qe7 {[%emt 0:03:32]} 17. axb5 {[%emt 0:01:26]} axb5 {[%emt 0:00:27]} 18. Nc2 {[%emt 0:01:18]} Rf8 {[%emt 0:03:03]} 19. Ne3 {[%emt 0:01:46]} Kd8 {[%emt 0:03:36]} 20. Qa3 {[%emt 0:09:35]} Kc7 {[%emt 0:02:08]} 21. Qa5+ {[%emt 0:04:19]} Rb6 {[%emt 0:02:48]} 22. d5 {[%emt 0:05:49]} Qd8 {[%emt 0:04:41]} 23. dxc6 {[%emt 0:04:11]} Kxc6 {[%emt 0:00:38]} 24. Rxf6 {[%emt 0:00:15]} Nxf6 {[%emt 0:00:06]} 25. Rxf6 {[%emt 0:00:26]} Qxf6 {[%emt 0:00:16]} 26. Qxb6+ {[%emt 0:00:10]} Kxb6 {[%emt 0:00:02]} 27. Nd5+ {[%emt 0:00:14]} Kc6 {[%emt 0:01:20]} 28. Nxf6 {[%emt 0:00:04]} h6 {[%emt 0:00:55]} 29. Kf2 {[%emt 0:01:05]} Ra8 {[%emt 0:00:33]} 30. Nd5 {[%emt 0:00:12]} Ra1 {[%emt 0:00:51]} 31. b4 {[%emt 0:03:20]} Ra2+ {[%emt 0:01:29]} 32. Kf3 {[%emt 0:00:08]} Ra1 {[%emt 0:00:46]} 33. g4 {[%emt 0:00:35]} Rh1 {[%emt 0:00:28]} 34. Kg2 {[%emt 0:00:12]} Rd1 {[%emt 0:00:14]} 35. Be2 {[%emt 0:00:04]} Re1 {[%emt 0:00:09]} 36. Bf3 {[%emt 0:00:45]} Rc1 {[%emt 0:00:58]} 37. h4 {[%emt 0:00:09]} Rc2+ {[%emt 0:00:33]} 38. Kg3 {[%emt 0:00:12]} Rc1 {[%emt 0:00:05]} 39. h5 {[%emt 0:00:15]} Rg1+ {[%emt 0:00:13]} 40. Kf2 {[%emt 0:00:20]} Rc1 {[%emt 0:00:11]} 41. Ke3 {[%emt 0:00:45]} Ra1 {[%emt 0:00:49]} 42. Ne7+ {[%emt 0:00:14]} Kd7 {[%emt 0:00:34]} 43. Nf5 {[%emt 0:00:09]} Ke6 {[%emt 0:00:33]} 44. Nxh6 {[%emt 0:00:06]} Kf6 {[%emt 0:01:09]} 45. Nf5 {[%emt 0:00:13]} Ra3 {[%emt 0:00:19]} 46. Kd3 {[%emt 0:00:04]} Ra6 {[%emt 0:00:03]} 47. Ne3 {[%emt 0:01:56]} Kg5 {[%emt 0:00:17]} 48. Nd5 {[%emt 0:00:10]} Ra2 {[%emt 0:00:20]} 49. Nc7 {[%emt 0:00:30]} Kf4 {[%emt 0:00:37]} 50. Be2 {[%emt 0:00:02]} d5 {[%emt 0:00:51]} 51. Nxd5+ {[%emt 0:00:05]} Kg3 {[%emt 0:00:11]} 52. Ke3 {[%emt 0:00:51]} Rc2 {[%emt 0:00:10]} 53. h6 {[%emt 0:00:22]} Ra2 {[%emt 0:00:52]} 54. h7 {[%emt 0:00:21]} Ra8 {[%emt 0:00:02]} 55. Nf6 {[%emt 0:00:15]} Rh8 {[%emt 0:00:04]} 56. Bxb5 {[%emt 0:00:40]} Kh4 {[%emt 0:00:03]} 57. Bd7 {[%emt 0:01:05]} Kg5 {[%emt 0:00:06]} 58. Bf5 {[%emt 0:00:55]} Kxf6 {[%emt 0:00:11]} 59. c4 {[%emt 0:00:14]} Kg7 {[%emt 0:00:28]} 60. b5 {[%emt 0:00:08]} Rd8 {[%emt 0:00:13]} 61. c5 {[%emt 0:00:31]} Rb8 {[%emt 0:00:35]} 62. b6 {[%emt 0:00:04]} Kh8 {[%emt 0:00:09]} 63. Kd3 {[%emt 0:00:08]} f6 {[%emt 0:00:04]} 64. Kc4 {[%emt 0:00:08]} Kg7 {[%emt 0:00:10]} 65. Kb5 {[%emt 0:00:02]} Kh8 {[%emt 0:00:17]} 66. c6 {[%emt 0:00:07]} Kg7 {[%emt 0:00:06]} 67. c7 {[%emt 0:00:08]} Rf8 {[%emt 0:00:01]} 68. b7 {[%emt 0:00:13]} Kh6 {[%emt 0:00:04]} 69. c8=Q {[%emt 0:00:11]} Rxc8 {[%emt 0:00:02]} 70. bxc8=Q {[%emt 0:00:11]} Kg5 {[%emt 0:00:02]} 71. h8=Q {[%emt 0:00:30]} Kf4 {[%emt 0:00:02]} 72. Qh2+ {[%emt 0:00:13]} Ke3 {[%emt 0:00:04]} 73. Qc3# {[%emt 0:00:08]} 1-0

[Event "1st Sakatam Open 2024"]
[Site "Guwahati"]
[Date "2024.03.26"]
[Round "7.7"]
[White "Chandreyee, Hajra"]
[Black "Maharnav Deka"]
[Result "1-0"]
[ECO "B10"]
[WhiteElo "1912"]
[BlackElo "1738"]
[Annotator "RC"]
[PlyCount "29"]
[EventDate "2024.03.24"]
[EventType "swiss"]
[EventCountry "IND"]
[SourceTitle "playchess.com"]
[Source "ChessBase"]
[SourceQuality "1"]
[TimeControl "5400+30"]

1. e4 {[%emt 0:03:53]} c6 {[%emt 0:02:44]} 2. c4 {[%emt 0:00:33]} d5 {[%emt 0:00:05]} 3. cxd5 {[%emt 0:00:04]} cxd5 {[%emt 0:00:03]} 4. exd5 {[%emt 0:00:07]} Nf6 {[%emt 0:00:04]} 5. Nc3 {[%emt 0:00:20]} Nxd5 {[%emt 0:00:21]} 6. Bc4 {[%emt 0:00:45]} Nf6 {[%emt 0:02:51]} 7. Nf3 {[%emt 0:00:24]} Nc6 {[%emt 0:00:20]} 8. d4 {[%emt 0:01:45]} Bg4 {[%emt 0:03:05]} 9. d5 {[%emt 0:01:23]} Ne5 {[%emt 0:03:05]} 10. Nxe5 {[%emt 0:00:48]} Bxd1 {[%emt 0:01:11]} 11. Bb5+ {[%emt 0:00:12]} Nd7 {[%emt 0:00:16]} 12. Bxd7+ {[%emt 0:00:06]} Qxd7 {[%emt 0:00:04]} 13. Nxd7 {[%emt 0:00:07]} Kxd7 {[%emt 0:01:44]} 14. Kxd1 {[%emt 0:00:07]} Rd8 {[%emt 0:00:08]} 15. Bf4 {[%emt 0:00:19]} 1-0

[Event "1st Sakatam Open 2024"]
[Site "Guwahati"]
[Date "2024.03.26"]
[Round "7.8"]
[White "Parambrata Sarkar"]
[Black "Tanmay Rajbongshi"]
[Result "0-1"]
[ECO "B25"]
[WhiteElo "1755"]
[BlackElo "1909"]
[Annotator "RC"]
[PlyCount "114"]
[EventDate "2024.03.24"]
[EventType "swiss"]
[EventCountry "IND"]
[SourceTitle "playchess.com"]
[Source "ChessBase"]
[SourceQuality "1"]
[TimeControl "5400+30"]

1. e4 {[%emt 0:00:12]} c5 {[%emt 0:00:04]} 2. Nc3 {[%emt 0:00:05]} Nc6 {[%emt 0:00:06]} 3. g3 {[%emt 0:00:03]} g6 {[%emt 0:00:13]} 4. Bg2 {[%emt 0:00:05]} Bg7 {[%emt 0:00:06]} 5. d3 {[%emt 0:00:06]} d6 {[%emt 0:00:17]} 6. f4 {[%emt 0:00:05]} e6 {[%emt 0:00:08]} 7. Nf3 {[%emt 0:00:05]} Nge7 {[%emt 0:00:05]} 8. O-O {[%emt 0:00:08]} d5 {[%emt 0:01:12]} 9. Bd2 {[%emt 0:28:41]} O-O {[%emt 0:01:35]} 10. Qe1 {[%emt 0:02:54]} Rb8 {[%emt 0:04:53]} 11. Qf2 {[%emt 0:03:01]} d4 {[%emt 0:00:41]} 12. Ne2 {[%emt 0:00:56]} b5 {[%emt 0:05:41]} 13. Rad1 {[%emt 0:02:47]} b4 {[%emt 0:02:17]} 14. g4 {[%emt 0:07:30]} f5 {[%emt 0:02:12]} 15. Qh4 {[%emt 0:00:18]} h6 {[%emt 0:03:35]} 16. Ng3 {[%emt 0:02:04]} Bd7 {[%emt 0:05:01]} 17. Rde1 {[%emt 0:02:21]} a5 {[%emt 0:03:36]} 18. Bh3 {[%emt 0:09:46]} Be8 {[%emt 0:07:07]} 19. exf5 {[%emt 0:05:56]} exf5 {[%emt 0:00:13]} 20. gxf5 {[%emt 0:00:04]} Nxf5 {[%emt 0:01:09]} 21. Nxf5 {[%emt 0:00:55]} gxf5 {[%emt 0:00:14]} 22. Qg3 {[%emt 0:00:41]} Kh8 {[%emt 0:01:46]} 23. Kf2 {[%emt 0:00:37]} c4 {[%emt 0:02:01]} 24. Rg1 {[%emt 0:02:27]} Rb7 {[%emt 0:00:33]} 25. Nh4 {[%emt 0:03:44]} c3 {[%emt 0:00:06]} 26. Bc1 {[%emt 0:01:14]} cxb2 {[%emt 0:02:14]} 27. Bxb2 {[%emt 0:00:33]} Rc7 {[%emt 0:02:58]} 28. Bxf5 {[%emt 0:03:03]} Rf6 {[%emt 0:02:01]} 29. Qg4 {[%emt 0:04:20]} Na7 {[%emt 0:03:23]} 30. Re2 {[%emt 0:01:45]} Nb5 {[%emt 0:00:05]} 31. Rge1 {[%emt 0:00:47]} Bf7 {[%emt 0:01:29]} 32. Nf3 {[%emt 0:00:55]} Rfc6 {[%emt 0:04:56]} 33. Rg1 {[%emt 0:01:52]} Bf6 {[%emt 0:04:06]} 34. Ne5 {[%emt 0:06:07]} Bxe5 {[%emt 0:00:06]} 35. fxe5 {[%emt 0:00:09]} Qf8 {[%emt 0:00:19]} 36. e6 {[%emt 0:01:55]} Bg6 {[%emt 0:05:13]} 37. Qxg6 {[%emt 0:08:33]} Rc5 {[%emt 0:00:06]} 38. e7 {[%emt 0:00:47]} Rxf5+ {[%emt 0:00:20]} 39. Ke1 {[%emt 0:00:10]} Rxe7 {[%emt 0:00:29]} 40. Qg4 {[%emt 0:01:15]} Rxe2+ {[%emt 0:00:38]} 41. Kxe2 {[%emt 0:00:08]} Rf4 {[%emt 0:00:57]} 42. Qd7 {[%emt 0:00:52]} Nc3+ {[%emt 0:01:09]} 43. Ke1 {[%emt 0:00:15]} a4 {[%emt 0:04:37]} 44. Bc1 {[%emt 0:00:31]} Rf7 {[%emt 0:01:12]} 45. Qxd4+ {[%emt 0:00:17]} Kh7 {[%emt 0:00:07]} 46. Be3 {[%emt 0:00:34]} Re7 {[%emt 0:01:05]} 47. Rf1 {[%emt 0:00:50]} Qe8 {[%emt 0:00:23]} 48. Kd2 {[%emt 0:00:18]} Qh5 {[%emt 0:01:17]} 49. Re1 {[%emt 0:00:56]} Qxh2+ {[%emt 0:00:36]} 50. Bf2 {[%emt 0:00:04]} Rf7 {[%emt 0:00:57]} 51. Re2 {[%emt 0:00:14]} Nxe2 {[%emt 0:00:39]} 52. Kxe2 {[%emt 0:00:10]} Qg2 {[%emt 0:00:44]} 53. Qh4 {[%emt 0:00:19]} Qf3+ {[%emt 0:02:06]} 54. Ke1 {[%emt 0:00:06]} b3 {[%emt 0:01:04]} 55. axb3 {[%emt 0:00:06]} axb3 {[%emt 0:00:09]} 56. cxb3 {[%emt 0:00:05]} Qxd3 {[%emt 0:00:09]} 57. b4 {[%emt 0:00:02]} Rd7 {[%emt 0:00:45]} 0-1

[Event "1st Sakatam Open 2024"]
[Site "Guwahati"]
[Date "2024.03.27"]
[Round "8.1"]
[White "Kaustuv, Kundu"]
[Black "Kishan Kumar"]
[Result "1-0"]
[ECO "A17"]
[WhiteElo "2388"]
[BlackElo "1867"]
[Annotator "RC"]
[PlyCount "35"]
[EventDate "2024.03.24"]
[EventType "swiss"]
[EventCountry "IND"]
[SourceTitle "playchess.com"]
[Source "ChessBase"]
[SourceQuality "1"]
[TimeControl "5400+30"]

1. Nf3 {[%emt 0:08:10]} d5 {[%emt 0:00:00]} 2. e3 {[%emt 0:01:08]} Nf6 {[%emt 0:00:09]} 3. c4 {[%emt 0:00:10]} e6 {[%emt 0:00:07]} 4. Nc3 {[%emt 0:00:48]} Be7 {[%emt 0:00:13]} 5. b3 {[%emt 0:00:27]} c5 {[%emt 0:01:45]} 6. cxd5 {[%emt 0:01:40]} exd5 {[%emt 0:05:08]} 7. Bb5+ {[%emt 0:05:38]} Bd7 {[%emt 0:00:42]} 8. Bxd7+ {[%emt 0:00:43]} Qxd7 {[%emt 0:06:57]} 9. d4 {[%emt 0:03:56]} cxd4 {[%emt 0:06:52]} 10. Nxd4 {[%emt 0:00:08]} Bb4 {[%emt 0:02:56]} 11. Bb2 {[%emt 0:03:02]} Nc6 {[%emt 0:12:57]} 12. O-O {[%emt 0:01:20]} O-O {[%emt 0:02:10]} 13. Nce2 {[%emt 0:04:44]} Rac8 {[%emt 0:02:31]} 14. Rc1 {[%emt 0:04:01]} Ne4 {[%emt 0:04:59]} 15. Nxc6 {[%emt 0:00:31]} Rxc6 {[%emt 0:10:53]} 16. Qd4 {[%emt 0:00:19]} Rg6 {[%emt 0:19:59]} 17. Nf4 {[%emt 0:01:19]} Rg5 {[%emt 0:03:15]} 18. Qxb4 {[%emt 0:00:17]} 1-0

[Event "1st Sakatam Open 2024"]
[Site "Guwahati"]
[Date "2024.03.27"]
[Round "8.2"]
[White "Balkishan, A.."]
[Black "Subhayan Kundu"]
[Result "1-0"]
[ECO "E73"]
[WhiteElo "2108"]
[BlackElo "2353"]
[Annotator "RC"]
[PlyCount "55"]
[EventDate "2024.03.24"]
[EventType "swiss"]
[EventCountry "IND"]
[SourceTitle "playchess.com"]
[Source "ChessBase"]
[SourceQuality "1"]
[TimeControl "5400+30"]

1. d4 {[%emt 0:04:55]} Nf6 {[%emt 0:00:03]} 2. c4 {[%emt 0:00:18]} g6 {[%emt 0:00:08]} 3. Nc3 {[%emt 0:00:23]} Bg7 {[%emt 0:00:08]} 4. e4 {[%emt 0:00:10]} d6 {[%emt 0:00:09]} 5. Be2 {[%emt 0:00:04]} O-O {[%emt 0:00:13]} 6. Be3 {[%emt 0:00:04]} Nc6 {[%emt 0:00:05]} 7. d5 {[%emt 0:00:40]} Ne5 {[%emt 0:00:05]} 8. f4 {[%emt 0:00:04]} Neg4 {[%emt 0:00:11]} 9. Bd2 {[%emt 0:00:36]} Nh6 {[%emt 0:02:35]} 10. Nf3 {[%emt 0:00:30]} e6 {[%emt 0:00:14]} 11. dxe6 {[%emt 0:03:19]} fxe6 {[%emt 0:01:56]} 12. O-O {[%emt 0:00:51]} Nf7 {[%emt 0:14:04]} 13. Qc2 {[%emt 0:02:53]} c6 {[%emt 0:02:21]} 14. h3 {[%emt 0:01:28]} Nh5 {[%emt 0:04:43]} 15. g4 {[%emt 0:07:53]} Ng3 {[%emt 0:00:40]} 16. Rf2 {[%emt 0:00:13]} Nxe2+ {[%emt 0:00:36]} 17. Rxe2 {[%emt 0:08:10]} b5 {[%emt 0:01:40]} 18. c5 {[%emt 0:14:42]} e5 {[%emt 0:00:09]} 19. cxd6 {[%emt 0:00:43]} exf4 {[%emt 0:08:14]} 20. e5 {[%emt 0:00:18]} Ng5 {[%emt 0:01:41]} 21. Nxg5 {[%emt 0:09:43]} Qxg5 22. Ne4 {[%emt 0:04:46]} Qxe5 {[%emt 0:00:59]} 23. Bc3 {[%emt 0:00:15]} Qd5 {[%emt 0:00:24]} 24. Rd1 {[%emt 0:03:13]} Qe6 {[%emt 0:01:54]} 25. Ng5 {[%emt 0:03:11]} Qc4 {[%emt 0:01:17]} 26. Bxg7 {[%emt 0:00:14]} Qxc2 {[%emt 0:00:17]} 27. Rxc2 {[%emt 0:00:03]} Kxg7 {[%emt 0:00:04]} 28. d7 {[%emt 0:00:13]} 1-0

[Event "1st Sakatam Open 2024"]
[Site "Guwahati"]
[Date "2024.03.27"]
[Round "8.3"]
[White "Tanmay Rajbongshi"]
[Black "Arpan Das"]
[Result "1/2-1/2"]
[ECO "B13"]
[WhiteElo "1909"]
[BlackElo "2374"]
[Annotator "RC"]
[PlyCount "126"]
[EventDate "2024.03.24"]
[EventType "swiss"]
[EventCountry "IND"]
[SourceTitle "playchess.com"]
[Source "ChessBase"]
[SourceQuality "1"]
[TimeControl "5400+30"]

1. e4 {[%emt 0:00:02]} c6 {[%emt 0:01:56]} 2. d4 {[%emt 0:00:03]} d5 {[%emt 0:00:09]} 3. exd5 {[%emt 0:00:04]} cxd5 {[%emt 0:00:04]} 4. Bd3 {[%emt 0:00:09]} Nf6 {[%emt 0:00:12]} 5. Bf4 {[%emt 0:00:16]} Bg4 {[%emt 0:00:16]} 6. Nf3 {[%emt 0:00:42]} Nc6 {[%emt 0:08:12]} 7. c3 {[%emt 0:00:12]} e6 {[%emt 0:03:23]} 8. Nbd2 {[%emt 0:00:16]} Bd6 {[%emt 0:00:11]} 9. Bxd6 {[%emt 0:00:05]} Qxd6 {[%emt 0:00:03]} 10. O-O {[%emt 0:00:24]} O-O {[%emt 0:00:12]} 11. Re1 {[%emt 0:01:30]} a6 {[%emt 0:02:30]} 12. Qb3 {[%emt 0:02:00]} Bxf3 {[%emt 0:06:28]} 13. Nxf3 {[%emt 0:00:12]} Qc7 {[%emt 0:00:03]} 14. Ne5 {[%emt 0:03:32]} Nxe5 {[%emt 0:00:07]} 15. dxe5 {[%emt 0:02:05]} Nd7 {[%emt 0:12:44]} 16. Qd1 {[%emt 0:01:30]} g6 {[%emt 0:00:58]} 17. Qe2 {[%emt 0:00:14]} Kg7 {[%emt 0:03:39]} 18. Rac1 {[%emt 0:02:42]} Rac8 {[%emt 0:05:43]} 19. h3 {[%emt 0:01:01]} Nc5 {[%emt 0:01:12]} 20. Bb1 {[%emt 0:00:39]} b5 {[%emt 0:00:40]} 21. b3 {[%emt 0:00:56]} Qe7 {[%emt 0:02:16]} 22. Qe3 {[%emt 0:02:51]} Nd7 {[%emt 0:08:44]} 23. Bd3 {[%emt 0:02:53]} Qa3 {[%emt 0:10:26]} 24. Qd2 {[%emt 0:07:50]} Rc7 {[%emt 0:02:27]} 25. h4 {[%emt 0:01:28]} h5 {[%emt 0:01:08]} 26. Bf1 {[%emt 0:01:32]} Rfc8 {[%emt 0:00:48]} 27. Rc2 {[%emt 0:02:54]} Nc5 {[%emt 0:05:21]} 28. Qf4 {[%emt 0:03:28]} Nd7 {[%emt 0:01:50]} 29. Qd2 {[%emt 0:05:26]} Rc6 {[%emt 0:00:44]} 30. Qe3 {[%emt 0:03:03]} Qc5 {[%emt 0:08:14]} 31. Qf4 {[%emt 0:00:28]} Qb6 {[%emt 0:01:45]} 32. Re3 {[%emt 0:01:53]} Qc7 {[%emt 0:02:08]} 33. Qd4 {[%emt 0:03:44]} Qd8 {[%emt 0:02:06]} 34. Rd2 {[%emt 0:02:23]} Nb6 {[%emt 0:02:30]} 35. Rdd3 {[%emt 0:03:36]} Nd7 {[%emt 0:01:28]} 36. Rd2 {[%emt 0:01:13]} R8c7 {[%emt 0:00:04]} 37. Rf3 {[%emt 0:03:19]} Qe7 {[%emt 0:02:32]} 38. Rc2 {[%emt 0:09:11]} Rc8 {[%emt 0:03:18]} 39. Qf4 {[%emt 0:01:39]} Rc5 {[%emt 0:01:08]} 40. Qd4 {[%emt 0:01:58]} R5c7 {[%emt 0:00:28]} 41. Re2 {[%emt 0:05:24]} Nb8 {[%emt 0:01:14]} 42. Ree3 {[%emt 0:01:30]} Nc6 {[%emt 0:00:14]} 43. Qf4 {[%emt 0:00:05]} d4 {[%emt 0:00:34]} 44. Re4 {[%emt 0:03:12]} Rd8 {[%emt 0:01:41]} 45. c4 {[%emt 0:02:53]} bxc4 {[%emt 0:00:36]} 46. Bxc4 {[%emt 0:00:28]} Rcd7 {[%emt 0:00:29]} 47. Rd3 {[%emt 0:01:06]} Rb8 {[%emt 0:00:28]} 48. g3 {[%emt 0:00:57]} Rb6 {[%emt 0:00:28]} 49. Kh2 {[%emt 0:01:15]} Kg8 {[%emt 0:00:24]} 50. Qh6 {[%emt 0:00:57]} Qf8 {[%emt 0:00:22]} 51. Qg5 {[%emt 0:00:15]} Qd8 {[%emt 0:00:05]} 52. Qd2 {[%emt 0:00:24]} Qe7 {[%emt 0:00:47]} 53. Qh6 {[%emt 0:00:31]} Qf8 {[%emt 0:00:07]} 54. Qg5 {[%emt 0:00:04]} Qd8 {[%emt 0:00:02]} 55. Qd2 {[%emt 0:00:09]} Qf8 {[%emt 0:01:43]} 56. Qg5 {[%emt 0:00:19]} Qg7 {[%emt 0:00:34]} 57. Qf4 {[%emt 0:01:28]} Kh7 {[%emt 0:00:26]} 58. Kg2 {[%emt 0:01:37]} Qh6 {[%emt 0:00:25]} 59. Qxh6+ {[%emt 0:00:44]} Kxh6 {[%emt 0:00:01]} 60. f4 {[%emt 0:00:25]} Kg7 {[%emt 0:00:24]} 61. Kf3 {[%emt 0:00:07]} Kf8 {[%emt 0:00:06]} 62. Re1 {[%emt 0:01:27]} Ke7 {[%emt 0:01:22]} 63. Red1 {[%emt 0:00:08]} Rd8 {[%emt 0:00:43]} 1/2-1/2

[Event "1st Sakatam Open 2024"]
[Site "Guwahati"]
[Date "2024.03.27"]
[Round "8.4"]
[White "Ashutosh, Kumar"]
[Black "Kumar, Gaurav"]
[Result "0-1"]
[ECO "D35"]
[WhiteElo "1825"]
[BlackElo "2049"]
[Annotator "RC"]
[PlyCount "116"]
[EventDate "2024.03.24"]
[EventType "swiss"]
[EventCountry "IND"]
[SourceTitle "playchess.com"]
[Source "ChessBase"]
[SourceQuality "1"]
[TimeControl "5400+30"]

1. d4 {[%emt 0:02:31]} Nf6 {[%emt 0:06:38]} 2. c4 {[%emt 0:00:14]} e6 {[%emt 0:00:16]} 3. Nf3 {[%emt 0:00:06]} d5 {[%emt 0:00:48]} 4. Nc3 {[%emt 0:00:17]} Be7 {[%emt 0:00:22]} 5. cxd5 {[%emt 0:00:12]} exd5 {[%emt 0:00:07]} 6. Bf4 {[%emt 0:00:03]} c6 {[%emt 0:03:36]} 7. h3 {[%emt 0:00:06]} Bd6 {[%emt 0:01:36]} 8. e3 {[%emt 0:01:15]} Bxf4 {[%emt 0:03:03]} 9. exf4 {[%emt 0:00:03]} O-O {[%emt 0:00:58]} 10. Bd3 {[%emt 0:02:17]} Qb6 {[%emt 0:06:26]} 11. Qc2 {[%emt 0:05:35]} Re8+ {[%emt 0:00:40]} 12. Kf1 {[%emt 0:00:18]} Na6 {[%emt 0:08:21]} 13. a3 {[%emt 0:01:05]} c5 {[%emt 0:05:04]} 14. Na4 {[%emt 0:02:25]} Qc7 {[%emt 0:00:22]} 15. Nxc5 {[%emt 0:21:23]} Nxc5 {[%emt 0:00:56]} 16. Qxc5 {[%emt 0:01:00]} Qxf4 {[%emt 0:00:12]} 17. Qc1 {[%emt 0:01:57]} Nh5 {[%emt 0:04:22]} 18. Bb5 {[%emt 0:14:56]} Re4 {[%emt 0:16:57]} 19. Kg1 {[%emt 0:09:23]} Qf6 {[%emt 0:02:01]} 20. Bd3 {[%emt 0:02:50]} Re7 {[%emt 0:02:23]} 21. Qg5 {[%emt 0:01:00]} Qxg5 {[%emt 0:01:07]} 22. Nxg5 {[%emt 0:00:03]} f6 {[%emt 0:05:02]} 23. Nf3 {[%emt 0:00:37]} Nf4 {[%emt 0:00:11]} 24. Bf1 {[%emt 0:00:56]} Bf5 {[%emt 0:00:20]} 25. Rc1 {[%emt 0:03:34]} Ne2+ {[%emt 0:09:13]} 26. Bxe2 {[%emt 0:00:11]} Rxe2 {[%emt 0:00:05]} 27. b4 {[%emt 0:05:56]} Rc8 {[%emt 0:07:41]} 28. Rxc8+ {[%emt 0:05:03]} Bxc8 {[%emt 0:00:04]} 29. Kh2 {[%emt 0:00:47]} Rxf2 {[%emt 0:02:57]} 30. Rc1 {[%emt 0:05:29]} Bf5 {[%emt 0:02:04]} 31. Rc7 {[%emt 0:01:45]} Be4 {[%emt 0:00:06]} 32. Rxb7 {[%emt 0:02:48]} Ra2 {[%emt 0:02:44]} 33. Kg1 {[%emt 0:02:56]} Rxa3 {[%emt 0:00:51]} 34. Nd2 {[%emt 0:01:37]} Bxg2 {[%emt 0:00:52]} 35. h4 {[%emt 0:05:06]} Rd3 {[%emt 0:01:27]} 36. Kxg2 {[%emt 0:01:20]} Rxd2+ {[%emt 0:00:05]} 37. Kg3 {[%emt 0:00:14]} Rd3+ {[%emt 0:01:46]} 38. Kg4 {[%emt 0:00:59]} g6 {[%emt 0:05:13]} 39. h5 {[%emt 0:00:31]} Rxd4+ {[%emt 0:00:35]} 40. Kg3 {[%emt 0:00:01]} gxh5 {[%emt 0:01:15]} 41. b5 {[%emt 0:00:17]} Rb4 {[%emt 0:00:18]} 42. Rxa7 {[%emt 0:00:43]} Rxb5 {[%emt 0:00:49]} 43. Rd7 {[%emt 0:00:29]} Rb3+ {[%emt 0:01:15]} 44. Kf4 {[%emt 0:00:56]} h4 {[%emt 0:00:47]} 45. Rxd5 {[%emt 0:00:23]} h3 {[%emt 0:00:19]} 46. Rh5 {[%emt 0:00:36]} Kg7 {[%emt 0:00:14]} 47. Ra5 {[%emt 0:01:11]} h2 {[%emt 0:00:49]} 48. Rh5 {[%emt 0:00:09]} Rb2 {[%emt 0:00:04]} 49. Rh3 {[%emt 0:00:16]} Rf2+ {[%emt 0:00:57]} 50. Kg3 {[%emt 0:00:16]} Rb2 {[%emt 0:00:15]} 51. Kf4 {[%emt 0:00:19]} h6 {[%emt 0:00:50]} 52. Rg3+ {[%emt 0:00:31]} Kh7 {[%emt 0:00:12]} 53. Rh3 {[%emt 0:00:01]} Rc2 {[%emt 0:00:18]} 54. Kf5 {[%emt 0:01:10]} Rf2+ {[%emt 0:00:12]} 55. Kg4 {[%emt 0:00:51]} Kg6 {[%emt 0:00:10]} 56. Kg3 {[%emt 0:00:13]} Rb2 {[%emt 0:00:05]} 57. Rh4 {[%emt 0:01:10]} f5 {[%emt 0:00:35]} 58. Kf3 {[%emt 0:00:36]} Kg5 {[%emt 0:00:10]} 0-1

[Event "1st Sakatam Open 2024"]
[Site "Guwahati"]
[Date "2024.03.27"]
[Round "8.5"]
[White "Mrinmoy Rajkhowa"]
[Black "Singh, Y. Dhanabir"]
[Result "0-1"]
[ECO "B52"]
[WhiteElo "1901"]
[BlackElo "1996"]
[Annotator "RC"]
[PlyCount "58"]
[EventDate "2024.03.24"]
[EventType "swiss"]
[EventCountry "IND"]
[SourceTitle "playchess.com"]
[Source "ChessBase"]
[SourceQuality "1"]
[TimeControl "5400+30"]

1. e4 {[%emt 0:00:02]} c5 {[%emt 0:00:45]} 2. Nf3 {[%emt 0:00:12]} d6 {[%emt 0:00:04]} 3. Bb5+ {[%emt 0:00:04]} Bd7 {[%emt 0:00:18]} 4. c4 {[%emt 0:00:05]} e5 {[%emt 0:03:53]} 5. Bxd7+ {[%emt 0:05:52]} Qxd7 {[%emt 0:01:13]} 6. Nc3 {[%emt 0:00:05]} Nc6 {[%emt 0:00:28]} 7. d3 {[%emt 0:01:45]} g6 {[%emt 0:00:36]} 8. a3 {[%emt 0:21:30]} Bg7 {[%emt 0:00:49]} 9. Rb1 {[%emt 0:00:22]} f5 {[%emt 0:07:51]} 10. O-O {[%emt 0:05:47]} Nf6 {[%emt 0:04:00]} 11. Bg5 {[%emt 0:01:54]} f4 {[%emt 0:06:54]} 12. Bxf6 {[%emt 0:00:54]} Bxf6 {[%emt 0:00:03]} 13. Nd5 {[%emt 0:00:14]} O-O {[%emt 0:00:20]} 14. b4 {[%emt 0:00:19]} Kh8 {[%emt 0:13:05]} 15. bxc5 {[%emt 0:04:57]} dxc5 {[%emt 0:01:22]} 16. Qb3 {[%emt 0:01:55]} b6 {[%emt 0:00:30]} 17. Qb5 {[%emt 0:03:52]} g5 {[%emt 0:02:15]} 18. Nd2 {[%emt 0:10:39]} g4 {[%emt 0:05:16]} 19. a4 {[%emt 0:07:07]} f3 {[%emt 0:18:18]} 20. g3 {[%emt 0:02:10]} Qe8 {[%emt 0:05:32]} 21. Kh1 {[%emt 0:06:03]} Rd8 {[%emt 0:06:34]} 22. h4 {[%emt 0:09:20]} Bxh4 {[%emt 0:07:10]} 23. gxh4 {[%emt 0:01:41]} Rxd5 {[%emt 0:01:40]} 24. Qxc6 {[%emt 0:03:51]} Qxc6 {[%emt 0:00:24]} 25. cxd5 {[%emt 0:00:05]} Qh6 {[%emt 0:00:09]} 26. Nc4 {[%emt 0:00:03]} Qxh4+ {[%emt 0:00:38]} 27. Kg1 {[%emt 0:00:03]} g3 {[%emt 0:00:20]} 28. fxg3 {[%emt 0:00:08]} Qxg3+ {[%emt 0:00:07]} 29. Kh1 {[%emt 0:00:02]} Qg2# {[%emt 0:00:07]} 0-1